fUSD/lending_fUSD_20250219
["ID","MTS","AMOUNT","RATE_DAILY","PERIOD"]
[353720210,1739997060059,-500.0,0.00012492,2]
[353720211,1739997060069,-337.28940789,0.00012492,2]
[353720212,1739997060079,-231.87685386,0.00012492,2]
[353720214,1739997060089,-500.0,0.00012492,2]
[353720216,1739997060099,-500.0,0.00012492,2]
[353720218,1739997060108,-500.0,0.00012492,2]
[353720220,1739997060118,-500.0,0.00012492,2]
[353720221,1739997060127,-500.0,0.00012492,2]
[353720223,1739997060137,-519.75,0.00012492,2]
[353720225,1739997060147,-500.0,0.00012492,2]
[353720227,1739997060158,-548.16,0.00012492,2]
[353720229,1739997060168,-500.0,0.00012492,2]
[353720231,1739997060178,-500.0,0.00012492,2]
[353720233,1739997060188,-500.0,0.00012492,2]
[353720235,1739997060198,-500.0,0.00012492,2]
[353720237,1739997060207,-500.0,0.00012492,2]
[353720239,1739997060217,-500.0,0.00012492,2]
[353720241,1739997060227,-500.0,0.00012492,2]
[353720243,1739997060236,-500.0,0.00012492,2]
[353720245,1739997060246,-500.0,0.00012492,2]
[353720247,1739997060256,-500.0,0.00012492,2]
[353720249,1739997060266,-614.09,0.00012492,2]
[353720251,1739997060275,-518.92,0.00012492,2]
[353720254,1739997060286,-703.53,0.00012492,2]
[353720255,1739997060295,-950.83,0.00012492,2]
[353720257,1739997060305,-805.07,0.00012492,2]
[353720259,1739997060314,-500.0,0.00012492,2]
[353720261,1739997060323,-166.86,0.00012492,2]
[353720263,1739997060333,-500.0,0.00012492,2]
[353720265,1739997060342,-500.0,0.00012492,2]
[353720267,1739997060351,-500.0,0.00012492,2]
[353720269,1739997060361,-500.0,0.00012492,2]
[353720271,1739997060370,-500.0,0.00012492,2]
[353720273,1739997060380,-500.0,0.00012492,2]
[353720275,1739997060389,-500.0,0.00012492,2]
[353720277,1739997060398,-500.0,0.00012492,2]
[353720279,1739997060408,-500.0,0.00012492,2]
[353720281,1739997060417,-500.0,0.00012492,2]
[353720283,1739997060426,-150.0,0.00012502,2]
[353720285,1739997060435,-500.0,0.00012558,2]
[353720287,1739997060445,-500.0,0.00012558,2]
[353720289,1739997060454,-744.76,0.00012558,2]
[353720291,1739997060463,-1003.02,0.00012558,2]
[353720293,1739997060471,-150.0,0.0001257,2]
[353720295,1739997060481,-500.0,0.00012575,2]
[353720297,1739997060490,-500.0,0.00012575,2]
[353720299,1739997060504,-565.13,0.00012575,2]
[353720301,1739997060514,-500.0,0.00012575,2]
[353720303,1739997060523,-500.0,0.00012575,2]
[353720305,1739997060532,-500.0,0.00012575,2]
[353720307,1739997060543,-500.0,0.00012575,2]
[353720309,1739997060552,-500.0,0.00012575,2]
[353720311,1739997060562,-500.0,0.00012575,2]
[353720313,1739997060572,-500.0,0.00012575,2]
[353720315,1739997060582,-500.0,0.00012575,2]
[353720317,1739997060592,-500.0,0.00012575,2]
[353720319,1739997060602,-579.73674351,0.00012575,2]
[353720321,1739997060612,-500.0,0.00012575,2]
[353720323,1739997060621,-500.0,0.00012575,2]
[353720325,1739997060630,-500.0,0.00012575,2]
[353720327,1739997060639,-500.0,0.00012575,2]
[353720329,1739997060648,-500.0,0.00012575,2]
[353720331,1739997060660,-552.16,0.00012575,2]
[353720333,1739997060669,-581.78,0.00012575,2]
[353720335,1739997060679,-500.0,0.00012575,2]
[353720337,1739997060688,-500.0,0.00012575,2]
[353720339,1739997060698,-524.86,0.00012575,2]
[353720341,1739997060707,-500.0,0.00012575,2]
[353720343,1739997060716,-500.0,0.00012575,2]
[353720345,1739997060726,-592.63,0.00012575,2]
[353720347,1739997060736,-743.17,0.00012575,2]
[353720349,1739997060745,-500.0,0.00012575,2]
[353720351,1739997060755,-500.0,0.00012575,2]
[353720353,1739997060765,-500.0,0.00012575,2]
[353720355,1739997060774,-500.0,0.00012575,2]
[353720357,1739997060784,-500.0,0.00012575,2]
[353720359,1739997060793,-500.0,0.00012575,2]
[353720361,1739997060802,-500.0,0.00012575,2]
[353720363,1739997060812,-519.75,0.00012575,2]
[353720365,1739997060822,-500.0,0.00012575,2]
[353720367,1739997060832,-548.16,0.00012575,2]
[353720369,1739997060842,-500.0,0.00012575,2]
[353720371,1739997060851,-500.0,0.00012575,2]
[353720373,1739997060860,-500.0,0.00012575,2]
[353720375,1739997060870,-500.0,0.00012575,2]
[353720377,1739997060879,-500.0,0.00012575,2]
[353720379,1739997060890,-500.0,0.00012575,2]
[353720381,1739997060900,-500.0,0.00012575,2]
[353720383,1739997060912,-189.62,0.00012575,2]
[353720385,1739997060922,-614.09,0.00012575,2]
[353720387,1739997060932,-703.53,0.00012575,2]
[353720389,1739997060942,-950.83,0.00012575,2]
[353720391,1739997060952,-805.07,0.00012575,2]
[353720393,1739997060961,-500.0,0.00012575,2]
[353720395,1739997060971,-500.0,0.00012575,2]
[353720397,1739997060980,-500.0,0.00012575,2]
[353720399,1739997060990,-500.0,0.00012575,2]
[353720401,1739997061000,-500.0,0.00012575,2]
[353720403,1739997061009,-500.0,0.00012575,2]
[353720405,1739997061019,-500.0,0.00012575,2]
[353720407,1739997061028,-500.0,0.00012575,2]
[353720409,1739997061037,-500.0,0.00012575,2]
[353720411,1739997061046,-500.0,0.00012575,2]
[353720413,1739997061056,-826.0,0.000126,2]
[353720426,1739997061233,-16014.95556194,0.00012621,2]
[353720428,1739997061243,-500.0,0.0001264,2]
[353720430,1739997061253,-500.0,0.0001264,2]
[353720432,1739997061263,-744.76,0.0001264,2]
[353720434,1739997061272,-1003.02,0.0001264,2]
[353720436,1739997061282,-1875.1716412,0.00012655,2]
[353720438,1739997061292,-500.0,0.00012657,2]
[353720440,1739997061302,-500.0,0.00012657,2]
[353720442,1739997061311,-565.13,0.00012657,2]
[353720444,1739997061321,-500.0,0.00012657,2]
[353720446,1739997061330,-500.0,0.00012657,2]
[353720448,1739997061339,-500.0,0.00012657,2]
[353720450,1739997061349,-175.42,0.00012657,2]
[353720452,1739997061358,-500.0,0.00012657,2]
[353720454,1739997061367,-500.0,0.00012657,2]
[353720456,1739997061377,-287.37939893,0.00012657,2]
[353720458,1739997061387,-506.3,0.00012657,2]
[353720460,1739997061396,-500.0,0.00012657,2]
[353720462,1739997061406,-500.0,0.00012657,2]
[353720464,1739997061418,-500.0,0.00012657,2]
[353720466,1739997061427,-167.2,0.00012657,2]
[353720468,1739997061437,-500.0,0.00012657,2]
[353720470,1739997061446,-500.0,0.00012657,2]
[353720472,1739997061455,-592.63,0.00012657,2]
[353720474,1739997061465,-743.17,0.00012657,2]
[353720476,1739997061475,-500.0,0.00012657,2]
[353720478,1739997061484,-244.76,0.00012657,2]
[353720480,1739997061497,-500.0,0.00012657,2]
[353720482,1739997061507,-500.0,0.00012657,2]
[353720484,1739997061516,-185.81,0.00012657,2]
[353720486,1739997061525,-585.12,0.00012657,2]
[353720488,1739997061535,-519.75,0.00012657,2]
[353720490,1739997061544,-500.0,0.00012657,2]
[353720492,1739997061554,-548.16,0.00012657,2]
[353720494,1739997061563,-500.0,0.00012657,2]
[353720496,1739997061573,-500.0,0.00012657,2]
[353720498,1739997061583,-235.14,0.00012657,2]
[353720500,1739997061593,-486.53,0.00012657,2]
[353720501,1739997061601,-643.91,0.00012657,2]
[353720503,1739997061611,-614.09,0.00012657,2]
[353720504,1739997061620,-703.53,0.00012657,2]
[353720506,1739997061629,-950.83,0.00012657,2]
[353720507,1739997061637,-805.07,0.00012657,2]
[353720509,1739997061645,-375.53,0.00012657,2]
[353720510,1739997061654,-500.0,0.00012657,2]
[353720512,1739997061665,-500.0,0.00012657,2]
[353720513,1739997061674,-500.0,0.00012657,2]
[353720515,1739997061684,-500.0,0.00012657,2]
[353720516,1739997061694,-500.0,0.00012657,2]
[353720518,1739997061704,-500.0,0.00012657,2]
[353720519,1739997061713,-500.0,0.00012657,2]
[353720521,1739997061722,-500.0,0.00012657,2]
[353720523,1739997061732,-1000.0,0.00012714,2]
[353720524,1739997061742,-796.93,0.00012722,2]
[353720526,1739997061752,-500.0,0.00012722,2]
[353720527,1739997061761,-500.0,0.00012722,2]
[353720529,1739997061771,-744.76,0.00012722,2]
[353720530,1739997061780,-1003.02,0.00012722,2]
[353720532,1739997061789,-809.66584928,0.00012726,2]
[353720533,1739997061799,-637.31,0.00012739,2]
[353720535,1739997061808,-520.06,0.00012739,2]
[353720537,1739997061817,-565.13,0.00012739,2]
[353720538,1739997061827,-286.98384506,0.00012739,2]
[353720540,1739997061837,-500.0,0.00012739,2]
[353720541,1739997061846,-500.0,0.00012739,2]
[353720543,1739997061855,-500.0,0.00012739,2]
[353720545,1739997061865,-500.0,0.00012739,2]
[353720546,1739997061875,-500.0,0.00012739,2]
[353720548,1739997061886,-542.53,0.00012739,2]
[353720550,1739997061896,-466.39,0.00012739,2]
[353720551,1739997061905,-500.0,0.00012739,2]
[353720553,1739997061917,-500.0,0.00012739,2]
[353720555,1739997061927,-592.63,0.00012739,2]
[353720556,1739997061937,-743.17,0.00012739,2]
[353720558,1739997061946,-500.0,0.00012739,2]
[353720560,1739997061955,-500.0,0.00012739,2]
[353720561,1739997061965,-500.0,0.00012739,2]
[353720563,1739997061975,-519.75,0.00012739,2]
[353720565,1739997061984,-500.0,0.00012739,2]
[353720566,1739997061993,-548.16,0.00012739,2]
[353720568,1739997062003,-500.0,0.00012739,2]
[353720570,1739997062012,-229.42999999,0.00012739,2]
[353720571,1739997062022,-614.09,0.00012739,2]
[353720573,1739997062031,-703.53,0.00012739,2]
[353720575,1739997062044,-950.83,0.00012739,2]
[353720577,1739997062053,-805.07,0.00012739,2]
[353720579,1739997062063,-500.0,0.00012739,2]
[353720581,1739997062072,-587.01934782,0.00012739,2]
[353720583,1739997062082,-500.0,0.00012739,2]
[353720586,1739997062092,-177.73,0.00012739,2]
[353720588,1739997062103,-500.0,0.00012739,2]
[353720590,1739997062112,-500.0,0.00012739,2]
[353720592,1739997062122,-312.14693,0.00012739,2]
[353720594,1739997062131,-500.0,0.00012739,2]
[353720596,1739997062141,-1784.0,0.0001275,2]
[353720598,1739997062152,-1424.0,0.0001275,2]
[353720600,1739997062161,-541.792,0.0001275,2]
[353720602,1739997062171,-550.267,0.0001275,2]
[353720604,1739997062180,-539.0,0.0001275,2]
[353720606,1739997062189,-1500.964,0.0001275,2]
[353720608,1739997062198,-251.207,0.0001275,2]
[353720610,1739997062208,-2024.0,0.0001275,2]
[353720612,1739997062219,-151.0,0.0001275,2]
[353720614,1739997062229,-150.678,0.0001275,2]
[353720615,1739997062238,-150.0,0.0001275,2]
[353720616,1739997062247,-3918.0,0.0001275,2]
[353720617,1739997062257,-150.0,0.00012774,2]
[353720618,1739997062268,-181.53459669,0.00012795,2]
[353720619,1739997062277,-181.5345967,0.00012795,2]
[353720620,1739997062287,-631.0847879,0.00012804,2]
[353720621,1739997062296,-500.0,0.00012804,2]
[353720622,1739997062305,-744.76,0.00012804,2]
[353720623,1739997062314,-1003.02,0.00012804,2]
[353720624,1739997062323,-565.13,0.00012821,2]
[353720625,1739997062332,-203.03,0.00012821,2]
[353720626,1739997062342,-209.36,0.00012821,2]
[353720627,1739997062351,-164.8,0.00012821,2]
[353720628,1739997062360,-500.0,0.00012821,2]
[353720629,1739997062369,-500.0,0.00012821,2]
[353720630,1739997062378,-592.63,0.00012821,2]
[353720631,1739997062388,-743.17,0.00012821,2]
[353720632,1739997062397,-530.96,0.00012821,2]
[353720633,1739997062407,-500.0,0.00012821,2]
[353720635,1739997062418,-500.0,0.00012821,2]
[353720637,1739997062427,-519.75,0.00012821,2]
[353720639,1739997062436,-500.0,0.00012821,2]
[353720641,1739997062446,-548.16,0.00012821,2]
[353720643,1739997062456,-500.0,0.00012821,2]
[353720645,1739997062465,-614.09,0.00012821,2]
[353720647,1739997062475,-703.53,0.00012821,2]
[353720649,1739997062484,-950.83,0.00012821,2]
[353720651,1739997062496,-805.07,0.00012821,2]
[353720652,1739997062508,-500.0,0.00012821,2]
[353720654,1739997062518,-500.0,0.00012821,2]
[353720656,1739997062528,-500.0,0.00012821,2]
[353720658,1739997062539,-500.0,0.00012821,2]
[353720660,1739997062549,-232.23,0.00012821,2]
[353720663,1739997062559,-1875.1716412,0.00012844,2]
[353720665,1739997062568,-196.02,0.00012853,2]
[353720667,1739997062580,-796.93,0.00012859,2]
[353720669,1739997062590,-500.0,0.00012886,2]
[353720671,1739997062600,-744.76,0.00012886,2]
[353720673,1739997062609,-1003.02,0.00012886,2]
[353720675,1739997062619,-565.13,0.00012903,2]
[353720676,1739997062629,-500.0,0.00012903,2]
[353720678,1739997062639,-500.0,0.00012903,2]
[353720681,1739997062648,-592.63,0.00012903,2]
[353720683,1739997062659,-743.17,0.00012903,2]
[353720685,1739997062669,-570.54,0.00012903,2]
[353720687,1739997062679,-500.0,0.00012903,2]
[353720689,1739997062691,-519.75,0.00012903,2]
[353720691,1739997062701,-500.0,0.00012903,2]
[353720693,1739997062710,-548.16,0.00012903,2]
[353720695,1739997062720,-500.0,0.00012903,2]
[353720697,1739997062729,-614.09,0.00012903,2]
[353720699,1739997062739,-703.53,0.00012903,2]
[353720701,1739997062749,-950.83,0.00012903,2]
[353720703,1739997062758,-805.07,0.00012903,2]
[353720705,1739997062769,-181.65,0.00012903,2]
[353720707,1739997062778,-500.0,0.00012903,2]
[353720709,1739997062789,-500.0,0.00012903,2]
[353720711,1739997062799,-500.0,0.00012903,2]
[353720714,1739997062810,-150.0,0.0001291,2]
[353720715,1739997062819,-433.0,0.00012944,2]
[353720718,1739997062829,-181.53459669,0.00012959,2]
[353720720,1739997062839,-163.37788916,0.00012959,2]
[353720721,1739997062850,-181.5345967,0.00012959,2]
[353720724,1739997062860,-532.34615059,0.00012969,2]
[353720725,1739997062869,-744.76,0.00012969,2]
[353720728,1739997062878,-1003.02,0.00012969,2]
[353720730,1739997062887,-150.0,0.0001298,2]
[353720731,1739997062898,-150.0,0.0001298,2]
[353720733,1739997062907,-565.13,0.00012986,2]
[353720735,1739997062917,-500.0,0.00012986,2]
[353720737,1739997062926,-500.0,0.00012986,2]
[353720739,1739997062935,-592.63,0.00012986,2]
[353720741,1739997062945,-743.17,0.00012986,2]
[353720743,1739997062955,-500.0,0.00012986,2]
[353720746,1739997062965,-519.75,0.00012986,2]
[353720748,1739997062975,-500.0,0.00012986,2]
[353720750,1739997062983,-548.16,0.00012986,2]
[353720752,1739997062992,-520.98,0.00012986,2]
[353720754,1739997063001,-614.09,0.00012986,2]
[353720756,1739997063011,-703.53,0.00012986,2]
[353720758,1739997063020,-950.83,0.00012986,2]
[353720760,1739997063029,-805.07,0.00012986,2]
[353720762,1739997063038,-500.0,0.00012986,2]
[353720764,1739997063048,-500.0,0.00012986,2]
[353720766,1739997063058,-423.51550103,0.00012986,2]
[353720768,1739997063068,-796.93,0.00012996,2]
[353720770,1739997063078,-600.0,0.00013,2]
[353720772,1739997063087,-150.0,0.00013007,2]
[353720774,1739997063097,-809.66584928,0.00013018,2]
[353720776,1739997063108,-1268.0,0.00013021,2]
[353720778,1739997063118,-1875.1716412,0.00013033,2]
[353720780,1739997063127,-150.0,0.00013035,2]
[353720782,1739997063137,-439.11,0.00013041,2]
[353720784,1739997063147,-150.0,0.00013045,2]
[353720786,1739997063157,-150.0,0.0001305,2]
[353720788,1739997063167,-744.83098882,0.00013051,2]
[353720790,1739997063177,-1003.23678238,0.00013051,2]
[353720792,1739997063187,-1000.0,0.00013055,2]
[353720794,1739997063197,-410.55435286,0.0001306,2]
[353720796,1739997063206,-150.0,0.00013062,2]
[353720797,1739997063216,-565.13,0.00013068,2]
[353720798,1739997063227,-500.0,0.00013068,2]
[353720799,1739997063237,-185.98182129,0.00013068,2]
[353720800,1739997063247,-592.63,0.00013068,2]
[353720801,1739997063257,-743.17,0.00013068,2]
[353720802,1739997063268,-500.0,0.00013068,2]
[353720803,1739997063278,-519.75,0.00013068,2]
[353720804,1739997063287,-500.0,0.00013068,2]
[353720805,1739997063298,-548.16,0.00013068,2]
[353720806,1739997063308,-614.09,0.00013068,2]
[353720807,1739997063318,-703.53,0.00013068,2]
[353720808,1739997063328,-950.83,0.00013068,2]
[353720809,1739997063338,-805.07,0.00013068,2]
[353720810,1739997063348,-551.70795297,0.00013068,2]
[353720811,1739997063358,-500.0,0.00013068,2]
[353720812,1739997063367,-150.0,0.00013082,2]
[353720813,1739997063377,-150.0,0.00013084,2]
[353720815,1739997063386,-150.0,0.00013085,2]
[353720817,1739997063396,-150.0,0.0001309,2]
[353720819,1739997063406,-1444.55,0.00013092,2]
[353720821,1739997063416,-220.7088887,0.00013102,2]
[353720823,1739997063425,-250.0,0.00013117,2]
[353720825,1739997063436,-1000.0,0.00013118,2]
[353720827,1739997063446,-150.0,0.0001312,2]
[353720829,1739997063456,-181.53459669,0.00013123,2]
[353720831,1739997063467,-163.37788916,0.00013123,2]
[353720834,1739997063477,-181.5345967,0.00013123,2]
[353720836,1739997063488,-150.0,0.00013133,2]
[353720838,1739997063501,-796.93,0.00013133,2]
[353720840,1739997063511,-150.0,0.00013134,2]
[353720842,1739997063521,-700.0,0.0001315,2]
[353720844,1739997063531,-1400.0,0.0001315,2]
[353720845,1739997063540,-565.13,0.0001315,2]
[353720847,1739997063550,-176.0,0.0001315,2]
[353720850,1739997063560,-592.63,0.0001315,2]
[353720852,1739997063571,-743.17,0.0001315,2]
[353720854,1739997063583,-500.0,0.0001315,2]
[353720856,1739997063594,-519.75,0.0001315,2]
[353720857,1739997063603,-339.37199515,0.0001315,2]
[353720858,1739997063613,-548.16,0.0001315,2]
[353720860,1739997063624,-614.09,0.0001315,2]
[353720862,1739997063633,-703.53,0.0001315,2]
[353720864,1739997063643,-950.83,0.0001315,2]
[353720866,1739997063654,-805.07,0.0001315,2]
[353720868,1739997063667,-500.0,0.0001315,2]
[353720870,1739997063733,-150.0,0.00013158,2]
[353720871,1739997063745,-150.0,0.00013192,2]
[353720872,1739997063755,-35247.33516979,0.00013199,2]
[353720873,1739997063766,-250.0,0.00013199,2]
[353720874,1739997063777,-150.0,0.00013207,2]
[353720875,1739997063787,-1875.1716412,0.00013222,2]
[353720876,1739997063798,-150.0,0.00013222,2]
[353720877,1739997063809,-565.13,0.00013232,2]
[353720878,1739997063820,-592.63,0.00013232,2]
[353720879,1739997063830,-743.17,0.00013232,2]
[353720881,1739997063841,-500.0,0.00013232,2]
[353720882,1739997063850,-519.75,0.00013232,2]
[353720884,1739997063860,-548.16,0.00013232,2]
[353720886,1739997063870,-614.09,0.00013232,2]
[353720888,1739997063880,-703.53,0.00013232,2]
[353720890,1739997063890,-950.83,0.00013232,2]
[353720892,1739997063900,-805.07,0.00013232,2]
[353720894,1739997063910,-500.0,0.00013232,2]
[353720896,1739997063922,-700.35412,0.0001324,2]
[353720898,1739997063933,-150.0,0.00013249,2]
[353720901,1739997063943,-150.0,0.00013267,2]
[353720903,1739997063954,-796.93,0.0001327,2]
[353720905,1739997063964,-36284.034,0.0001327,2]
[353720907,1739997063974,-203.49745033,0.0001329,2]
[353720909,1739997063984,-150.0,0.00013293,2]
[353720911,1739997063993,-150.0,0.00013297,2]
[353720912,1739997064003,-72208.66438661,0.000133,2]
[353720915,1739997064014,-200000.0,0.000133,2]
[353720916,1739997064025,-224.218,0.00013304,2]
[353720918,1739997064036,-150.0,0.00013305,2]
[353720920,1739997064046,-809.66584928,0.00013309,2]
[353720921,1739997064055,-565.13,0.00013314,2]
[353720922,1739997064067,-592.63,0.00013314,2]
[353720923,1739997064077,-743.17,0.00013314,2]
[353720924,1739997064087,-500.0,0.00013314,2]
[353720925,1739997064096,-519.75,0.00013314,2]
[353720926,1739997064106,-548.16,0.00013314,2]
[353720927,1739997064115,-614.09,0.00013314,2]
[353720928,1739997064124,-703.53,0.00013314,2]
[353720929,1739997064134,-950.83,0.00013314,2]
[353720930,1739997064144,-805.07,0.00013314,2]
[353720931,1739997064154,-500.0,0.00013314,2]
[353720932,1739997064164,-181.53459669,0.00013315,2]
[353720933,1739997064174,-181.5345967,0.00013315,2]
[353720934,1739997064184,-150.0,0.00013317,2]
[353720935,1739997064194,-819363.58290108,0.0001337,2]
[353720936,1739997064203,-50829.82161446,0.0001337,2]
[353720937,1739997064213,-204.0,0.0001339,2]
[353720938,1739997064223,-215.0,0.0001339,2]
[353720939,1739997064233,-565.13,0.00013396,2]
[353720940,1739997064243,-592.63,0.00013396,2]
[353720941,1739997064253,-743.17,0.00013396,2]
[353720942,1739997064263,-496.01,0.00013396,2]
[353720943,1739997064273,-519.75,0.00013396,2]
[353720944,1739997064283,-548.16,0.00013396,2]
[353720945,1739997064292,-614.09,0.00013396,2]
[353720946,1739997064302,-703.53,0.00013396,2]
[353720947,1739997064311,-950.83,0.00013396,2]
[353720948,1739997064321,-805.07,0.00013396,2]
[353720949,1739997064331,-238.83,0.00013396,2]
[353720950,1739997064341,-796.93,0.00013407,2]
[353720951,1739997064351,-1875.1716412,0.00013411,2]
[353720952,1739997064360,-592.00920596,0.00013424,2]
[353720953,1739997064370,-1959.65,0.00013424,3]
[353720954,1739997064380,-2000.0,0.00013424,2]
[353720955,1739997064389,-159.57333903,0.00013425,2]
[353720956,1739997064399,-1060.0,0.0001346,2]
[353720957,1739997064409,-565.13,0.00013479,2]
[353720958,1739997064420,-592.63,0.00013479,2]
[353720959,1739997064430,-743.17,0.00013479,2]
[353720960,1739997064440,-519.75,0.00013479,2]
[353720961,1739997064449,-548.16,0.00013479,2]
[353720962,1739997064459,-614.09,0.00013479,2]
[353720963,1739997064469,-703.53,0.00013479,2]
[353720964,1739997064479,-999.0,0.00013479,2]
[353720965,1739997064488,-999.0,0.00013479,2]
[353720966,1739997064501,-999.0,0.00013479,2]
[353720967,1739997064511,-999.0,0.00013479,2]
[353720968,1739997064521,-999.0,0.00013479,2]
[353720969,1739997064531,-999.0,0.00013479,2]
[353720970,1739997064542,-999.0,0.00013479,2]
[353720971,1739997064551,-999.0,0.00013479,2]
[353720972,1739997064561,-999.0,0.00013479,2]
[353720973,1739997064571,-999.0,0.00013479,2]
[353720974,1739997064582,-268.26999999,0.00013479,2]
[353720975,1739997064592,-950.83,0.00013479,2]
[353720976,1739997064603,-805.07,0.00013479,2]
[353720977,1739997064613,-159.57333903,0.00013479,2]
[353720978,1739997064622,-1000.0,0.000135,2]
[353720979,1739997064632,-796.93,0.00013544,2]
[353720980,1739997064641,-282.02,0.00013561,2]
[353720981,1739997064651,-565.13,0.00013561,2]
[353720982,1739997064661,-592.63,0.00013561,2]
[353720983,1739997064671,-743.17,0.00013561,2]
[353720984,1739997064681,-519.75,0.00013561,2]
[353720985,1739997064691,-548.16,0.00013561,2]
[353720986,1739997064701,-614.09,0.00013561,2]
[353720987,1739997064710,-703.53,0.00013561,2]
[353720988,1739997064724,-950.83,0.00013561,2]
[353720989,1739997064735,-805.07,0.00013561,2]
[353720990,1739997064746,-159.57333903,0.00013562,2]
[353720991,1739997064756,-150.0,0.00013589,2]
[353720992,1739997064765,-193.19827275,0.00013589,2]
[353720993,1739997064774,-150.0,0.00013589,2]
[353720994,1739997064784,-204.0,0.0001359,2]
[353720995,1739997064793,-215.0,0.0001359,2]
[353720996,1739997064803,-5800.0,0.00013592,2]
[353720997,1739997064813,-2000.0,0.000136,2]
[353720998,1739997064822,-2000.0,0.000136,2]
[353720999,1739997064831,-2000.0,0.000136,2]
[353721000,1739997064841,-2000.0,0.000136,2]
[353721001,1739997064850,-2000.0,0.000136,2]
[353721002,1739997064859,-2000.0,0.000136,2]
[353721003,1739997064869,-2000.0,0.000136,2]
[353721004,1739997064878,-2000.0,0.000136,2]
[353721005,1739997064888,-134929.10796255,0.000136,3]
[353721006,1739997064897,-2000.0,0.000136,2]
[353721007,1739997064906,-2000.0,0.000136,2]
[353721008,1739997064916,-5800.0,0.000136,2]
[353721009,1739997064926,-441.64928735,0.000136,2]
[353721010,1739997064936,-809.66584928,0.000136,2]
[353721011,1739997064946,-441.64928735,0.000136,2]
[353721012,1739997064955,-441.64928735,0.000136,2]
[353721013,1739997064965,-441.64928735,0.000136,2]
[353721014,1739997064975,-441.64928735,0.000136,2]
[353721015,1739997064985,-441.64928735,0.000136,2]
[353721016,1739997064995,-441.64928735,0.000136,2]
[353721017,1739997065004,-441.64928735,0.000136,2]
[353721018,1739997065014,-441.64928735,0.000136,2]
[353721019,1739997065023,-441.64928735,0.000136,2]
[353721020,1739997065033,-441.64928735,0.000136,2]
[353721021,1739997065042,-441.64928735,0.000136,2]
[353721022,1739997065051,-441.64928735,0.000136,2]
[353721023,1739997065061,-441.64928735,0.000136,2]
[353721024,1739997065071,-1875.1716412,0.000136,2]
[353721025,1739997065080,-441.64928735,0.000136,2]
[353721026,1739997065090,-441.64928735,0.000136,2]
[353721027,1739997065102,-441.64928735,0.000136,2]
[353721028,1739997065111,-441.64928735,0.000136,2]
[353721029,1739997065121,-441.64928735,0.000136,2]
[353721030,1739997065130,-113160.0,0.00013628,2]
[353721031,1739997065140,-565.13,0.00013643,2]
[353721032,1739997065150,-592.63,0.00013643,2]
[353721033,1739997065160,-743.17,0.00013643,2]
[353721034,1739997065170,-519.75,0.00013643,2]
[353721035,1739997065179,-548.16,0.00013643,2]
[353721036,1739997065189,-614.09,0.00013643,2]